[Event "*** Titled Tuesday Blitz"]
[Site "Chess.com"]
[Date "2020.04.07"]
[Round "9"]
[White "IAgrest"]
[Black "stolencandy13"]
[Result "0-1"]
[WhiteElo "2213"]
[BlackElo "2437"]
[TimeControl "180+1"]
[EndTime "14:46:41 PDT"]
[Termination "stolencandy13 won on time"]

1. e4 {[%clk 0:03:00.9]} 1... c6 {[%clk 0:02:59.5]} 2. d4 {[%clk 0:03:00.6]}
2... d5 {[%clk 0:03:00.4]} 3. f3 {[%clk 0:03:00.8]} 3... Qb6 {[%clk 0:02:59.9]}
4. Nc3 {[%clk 0:02:54.5]} 4... dxe4 {[%clk 0:02:44.5]} 5. Bc4 {[%clk 0:02:52.1]}
5... Nf6 {[%clk 0:02:41.2]} 6. fxe4 {[%clk 0:02:41.2]} 6... e5 {[%clk
0:02:36.4]} 7. Nf3 {[%clk 0:02:37.4]} 7... exd4 {[%clk 0:02:33]} 8. Qxd4 {[%clk
0:02:22.4]} 8... Qxd4 {[%clk 0:02:28]} 9. Nxd4 {[%clk 0:02:21.5]} 9... Bb4
{[%clk 0:02:27.6]} 10. Bd2 {[%clk 0:01:48.3]} 10... O-O {[%clk 0:02:20.7]} 11.
O-O-O {[%clk 0:01:43.2]} 11... Bxc3 {[%clk 0:02:18]} 12. Bxc3 {[%clk 0:01:43.1]}
12... Nxe4 {[%clk 0:02:18.6]} 13. Be1 {[%clk 0:01:42.9]} 13... Nd7 {[%clk
0:02:14.6]} 14. Nf3 {[%clk 0:01:31.6]} 14... Ndf6 {[%clk 0:02:09.7]} 15. Rf1
{[%clk 0:01:29]} 15... Bg4 {[%clk 0:02:07.8]} 16. h3 {[%clk 0:01:28.1]} 16...
Bh5 {[%clk 0:01:57]} 17. g4 {[%clk 0:01:21.5]} 17... Bg6 {[%clk 0:01:57]} 18.
Nh4 {[%clk 0:01:14.1]} 18... Rad8 {[%clk 0:01:55.1]} 19. Rxd8 {[%clk 0:00:44.1]}
19... Rxd8 {[%clk 0:01:54]} 20. Nf5 {[%clk 0:00:43.5]} 20... Bxf5 {[%clk
0:01:51.1]} 21. Rxf5 {[%clk 0:00:42.4]} 21... Nd6 {[%clk 0:01:46.7]} 22. Rf4
{[%clk 0:00:40.1]} 22... Nxc4 {[%clk 0:01:42.1]} 23. Rxc4 {[%clk 0:00:41]} 23...
Nd5 {[%clk 0:01:31.7]} 24. Re4 {[%clk 0:00:39.6]} 24... Kf8 {[%clk 0:01:23.6]}
25. Bf2 {[%clk 0:00:39.1]} 25... b6 {[%clk 0:01:19.2]} 26. Ra4 {[%clk
0:00:28.3]} 26... Rd7 {[%clk 0:01:15]} 27. Re4 {[%clk 0:00:19.7]} 27... Re7
{[%clk 0:01:12]} 28. Rxe7 {[%clk 0:00:16.8]} 28... Kxe7 {[%clk 0:01:11.7]} 29.
Kd2 {[%clk 0:00:17.2]} 29... Kd6 {[%clk 0:01:11.4]} 30. Bg3+ {[%clk 0:00:15.7]}
30... Kd7 {[%clk 0:01:08.6]} 31. Bb8 {[%clk 0:00:14.9]} 31... a6 {[%clk
0:01:08.5]} 32. Bg3 {[%clk 0:00:13.2]} 32... c5 {[%clk 0:01:04.7]} 33. a3 {[%clk
0:00:09.4]} 33... b5 {[%clk 0:01:04.2]} 34. Kd3 {[%clk 0:00:09.1]} 34... Ke6
{[%clk 0:01:02.2]} 35. Ke4 {[%clk 0:00:09]} 35... Nb6 {[%clk 0:01:02]} 36. b3
{[%clk 0:00:07.7]} 36... f6 {[%clk 0:00:59]} 37. Bf2 {[%clk 0:00:06.8]} 37...
Nd7 {[%clk 0:00:58.8]} 38. Be3 {[%clk 0:00:05.4]} 38... g6 {[%clk 0:00:58.9]}
39. Bf2 {[%clk 0:00:05.3]} 39... f5+ {[%clk 0:00:59.1]} 40. Kf4 {[%clk
0:00:04.3]} 40... h6 {[%clk 0:00:58]} 41. gxf5+ {[%clk 0:00:02.3]} 41... gxf5
{[%clk 0:00:58.2]} 42. h4 {[%clk 0:00:02.5]} 42... c4 {[%clk 0:00:56.3]} 0-1

[Event "*** Titled Tuesday Blitz"]
[Site "Chess.com"]
[Date "2020.04.07"]
[Round "9"]
[White "zacachess"]
[Black "MixMasterChess"]
[Result "1-0"]
[WhiteElo "2297"]
[BlackElo "2125"]
[TimeControl "180+1"]
[EndTime "14:46:41 PDT"]
[Termination "zacachess won on time"]

1. e4 {[%clk 0:03:00.9]} 1... e6 {[%clk 0:03:00.1]} 2. d4 {[%clk 0:03:00]} 2...
d5 {[%clk 0:03:00.6]} 3. Nd2 {[%clk 0:03:00.5]} 3... c5 {[%clk 0:02:59.5]} 4.
exd5 {[%clk 0:03:00.4]} 4... Qxd5 {[%clk 0:02:59.6]} 5. dxc5 {[%clk 0:02:59.8]}
5... Nf6 {[%clk 0:02:56.5]} 6. Ngf3 {[%clk 0:02:59.7]} 6... Bxc5 {[%clk
0:02:54.2]} 7. Bc4 {[%clk 0:02:59.8]} 7... Qd7 {[%clk 0:02:49.9]} 8. O-O {[%clk
0:02:57.9]} 8... a6 {[%clk 0:02:49]} 9. c3 {[%clk 0:02:57.4]} 9... b5 {[%clk
0:02:48.4]} 10. Bb3 {[%clk 0:02:57.5]} 10... Bb7 {[%clk 0:02:48.1]} 11. Qe2
{[%clk 0:02:58]} 11... Nc6 {[%clk 0:02:41.6]} 12. Re1 {[%clk 0:02:56.2]} 12...
O-O {[%clk 0:02:40.4]} 13. Ng5 {[%clk 0:02:49.1]} 13... h6 {[%clk 0:02:34.7]}
14. Nge4 {[%clk 0:02:09.8]} 14... Be7 {[%clk 0:02:32.5]} 15. Nxf6+ {[%clk
0:02:08]} 15... Bxf6 {[%clk 0:02:30.8]} 16. Ne4 {[%clk 0:02:08.4]} 16... Be7
{[%clk 0:02:30.9]} 17. Qh5 {[%clk 0:02:01.2]} 17... Na5 {[%clk 0:02:02.6]} 18.
Bc2 {[%clk 0:01:56.6]} 18... Qd5 {[%clk 0:01:55.8]} 19. Qh3 {[%clk 0:01:38.9]}
19... Nc4 {[%clk 0:01:49.7]} 20. Bxh6 {[%clk 0:01:33.8]} 20... gxh6 {[%clk
0:01:44.7]} 21. Qxh6 {[%clk 0:01:33.8]} 21... f5 {[%clk 0:01:17.2]} 22. Qg6+
{[%clk 0:01:32.1]} 22... Kh8 {[%clk 0:01:15.6]} 23. Rad1 {[%clk 0:01:31.1]}
23... Qe5 {[%clk 0:01:03.1]} 24. Rd3 {[%clk 0:01:27.4]} 24... Qg7 {[%clk
0:00:57.9]} 25. Rh3+ {[%clk 0:01:21.8]} 25... Kg8 {[%clk 0:00:51.9]} 26. Qxe6+
{[%clk 0:01:21.1]} 26... Qf7 {[%clk 0:00:51.8]} 27. Qh6 {[%clk 0:00:52.3]} 27...
Qg7 {[%clk 0:00:24.7]} 28. Rg3 {[%clk 0:00:48.1]} 28... Qxg3 {[%clk 0:00:22.2]}
29. Nxg3 {[%clk 0:00:49]} 29... Rf6 {[%clk 0:00:18]} 30. Qg5+ {[%clk 0:00:43.3]}
30... Kf7 {[%clk 0:00:18.2]} 31. Nxf5 {[%clk 0:00:36]} 1-0

[Event "*** Titled Tuesday Blitz"]
[Site "Chess.com"]
[Date "2020.04.07"]
[Round "9"]
[White "MartinCerveny"]
[Black "Crazy_girl99"]
[Result "1-0"]
[WhiteElo "2639"]
[BlackElo "2490"]
[TimeControl "180+1"]
[EndTime "14:46:44 PDT"]
[Termination "MartinCerveny won by checkmate"]

1. d4 {[%clk 0:03:00.9]} 1... d5 {[%clk 0:02:58]} 2. c4 {[%clk 0:03:00.4]} 2...
c6 {[%clk 0:02:51.8]} 3. Nf3 {[%clk 0:02:59.7]} 3... Nf6 {[%clk 0:02:51.4]} 4.
e3 {[%clk 0:02:59.9]} 4... g6 {[%clk 0:02:51.5]} 5. Nc3 {[%clk 0:02:56]} 5...
Bg7 {[%clk 0:02:51.4]} 6. Bd2 {[%clk 0:02:56.2]} 6... O-O {[%clk 0:02:51.4]} 7.
Rc1 {[%clk 0:02:56.2]} 7... e6 {[%clk 0:02:50.7]} 8. Be2 {[%clk 0:02:54.8]} 8...
Nbd7 {[%clk 0:02:51.1]} 9. O-O {[%clk 0:02:53.9]} 9... b6 {[%clk 0:02:51.2]} 10.
a4 {[%clk 0:02:52.8]} 10... Ba6 {[%clk 0:02:49.7]} 11. cxd5 {[%clk 0:02:47.9]}
11... Bxe2 {[%clk 0:02:49.2]} 12. Qxe2 {[%clk 0:02:47.8]} 12... cxd5 {[%clk
0:02:48.6]} 13. Nb5 {[%clk 0:02:40.6]} 13... Ne4 {[%clk 0:02:41.1]} 14. Bb4
{[%clk 0:02:39.3]} 14... a6 {[%clk 0:02:27.8]} 15. Bxf8 {[%clk 0:02:37.5]} 15...
Bxf8 {[%clk 0:02:18]} 16. Nc3 {[%clk 0:02:37.5]} 16... Nd6 {[%clk 0:02:16.9]}
17. b3 {[%clk 0:02:33.4]} 17... Rb8 {[%clk 0:02:11]} 18. Qxa6 {[%clk 0:02:25.3]}
18... h5 {[%clk 0:01:55]} 19. Qe2 {[%clk 0:02:15.3]} 19... b5 {[%clk 0:01:46]}
20. Nxb5 {[%clk 0:02:13.3]} 20... Nxb5 {[%clk 0:01:45.3]} 21. axb5 {[%clk
0:02:13.4]} 21... Qa5 {[%clk 0:01:45.9]} 22. Ng5 {[%clk 0:01:42.4]} 22... Be7
{[%clk 0:01:44.5]} 23. h4 {[%clk 0:01:35.4]} 23... Rxb5 {[%clk 0:01:40.3]} 24.
Rc8+ {[%clk 0:01:28.5]} 24... Kg7 {[%clk 0:01:39.4]} 25. Rfc1 {[%clk 0:01:21.1]}
25... Rb7 {[%clk 0:01:30.6]} 26. Qf3 {[%clk 0:01:19.2]} 26... Nf6 {[%clk
0:01:29.2]} 27. Qf4 {[%clk 0:01:13.3]} 27... Qb6 {[%clk 0:01:26.5]} 28. R8c6
{[%clk 0:01:02.2]} 28... Qd8 {[%clk 0:01:23.4]} 29. Rxe6 {[%clk 0:00:51.3]}
29... Rxb3 {[%clk 0:01:20.2]} 30. Rc7 {[%clk 0:00:45.3]} 30... Rb1+ {[%clk
0:01:17.9]} 31. Kh2 {[%clk 0:00:45.4]} 31... Ng4+ {[%clk 0:01:06.7]} 32. Kg3
{[%clk 0:00:45.3]} 32... Nh6 {[%clk 0:00:37.9]} 33. Rcxe7 {[%clk 0:00:19.7]}
33... Nf5+ {[%clk 0:00:34]} 34. Qxf5 {[%clk 0:00:20]} 34... gxf5 {[%clk
0:00:34]} 35. Rxf7+ {[%clk 0:00:20.1]} 35... Kh8 {[%clk 0:00:28.4]} 36. Rh6+
{[%clk 0:00:20]} 36... Kg8 {[%clk 0:00:28.7]} 37. Rg6+ {[%clk 0:00:20.4]} 37...
Kh8 {[%clk 0:00:29.1]} 38. Rh7# {[%clk 0:00:20.5]} 1-0

[Event "*** Titled Tuesday Blitz"]
[Site "Chess.com"]
[Date "2020.04.07"]
[Round "9"]
[White "ApacheSVD"]
[Black "Arman_Hakemi"]
[Result "1/2-1/2"]
[WhiteElo "2393"]
[BlackElo "2595"]
[TimeControl "180+1"]
[EndTime "14:46:44 PDT"]
[Termination "Game drawn by agreement"]

1. e4 {[%clk 0:03:00.9]} 1... c6 {[%clk 0:02:58.3]} 2. c4 {[%clk 0:03:00.6]}
2... d5 {[%clk 0:02:58.7]} 3. cxd5 {[%clk 0:03:01.5]} 3... cxd5 {[%clk
0:02:59.1]} 4. exd5 {[%clk 0:03:02.4]} 4... Nf6 {[%clk 0:02:59.6]} 5. Nc3 {[%clk
0:03:03.3]} 5... Nxd5 {[%clk 0:02:59.4]} 6. Nf3 {[%clk 0:03:03.9]} 6... Nc6
{[%clk 0:02:59.5]} 7. Bb5 {[%clk 0:03:03.8]} 7... e6 {[%clk 0:02:57.6]} 8. O-O
{[%clk 0:03:02.7]} 8... Be7 {[%clk 0:02:56.6]} 9. d4 {[%clk 0:03:02.6]} 9... O-O
{[%clk 0:02:56.2]} 10. Re1 {[%clk 0:03:03.1]} 10... Bf6 {[%clk 0:02:55.8]} 11.
Ne4 {[%clk 0:02:54]} 11... Nce7 {[%clk 0:02:51.3]} 12. Nxf6+ {[%clk 0:02:41.7]}
12... Nxf6 {[%clk 0:02:52.2]} 13. Bg5 {[%clk 0:02:41.3]} 13... Ned5 {[%clk
0:02:50.4]} 14. Ne5 {[%clk 0:02:40.2]} 14... h6 {[%clk 0:02:47.1]} 15. Bh4
{[%clk 0:02:40]} 15... a6 {[%clk 0:02:45.8]} 16. Bd3 {[%clk 0:02:39.7]} 16... b5
{[%clk 0:02:44.1]} 17. Rc1 {[%clk 0:02:13.6]} 17... Bb7 {[%clk 0:02:41.7]} 18.
Bb1 {[%clk 0:02:13.3]} 18... Rc8 {[%clk 0:02:23.1]} 19. Rxc8 {[%clk 0:02:11]}
19... Qxc8 {[%clk 0:02:12.5]} 20. h3 {[%clk 0:01:49.3]} 20... Qc7 {[%clk
0:01:34.5]} 21. Ng4 {[%clk 0:01:35.3]} 21... Nxg4 {[%clk 0:01:32.5]} 22. Qxg4
{[%clk 0:01:36.2]} 22... Qf4 {[%clk 0:01:25.7]} 23. Qxf4 {[%clk 0:01:12.6]}
23... Nxf4 {[%clk 0:01:26.6]} 24. f3 {[%clk 0:01:12.4]} 24... Rc8 {[%clk
0:01:22.8]} 25. Be7 {[%clk 0:01:04.8]} 25... Nd5 {[%clk 0:01:01.7]} 26. Bc5
{[%clk 0:01:04.7]} 26... Rd8 {[%clk 0:01:01.8]} 27. b4 {[%clk 0:01:00.6]} 27...
Nf6 {[%clk 0:01:00.2]} 28. Be4 {[%clk 0:00:58.2]} 28... Bd5 {[%clk 0:00:55.5]}
29. Bb1 {[%clk 0:00:56.2]} 29... Bc4 {[%clk 0:00:54.7]} 30. a3 {[%clk
0:00:52.5]} 30... Nd5 {[%clk 0:00:54.6]} 31. Be4 {[%clk 0:00:49.9]} 31... Rd7
{[%clk 0:00:48.1]} 32. Bxd5 {[%clk 0:00:49.7]} 32... Rxd5 {[%clk 0:00:47.9]} 33.
Re5 {[%clk 0:00:48.9]} 33... Rxe5 {[%clk 0:00:42.2]} 34. dxe5 {[%clk 0:00:49.8]}
34... Kh7 {[%clk 0:00:41.4]} 35. Kf2 {[%clk 0:00:48]} 35... Kg6 {[%clk
0:00:40.7]} 36. g4 {[%clk 0:00:43.6]} 36... h5 {[%clk 0:00:40.6]} 37. Kg3 {[%clk
0:00:43.3]} 37... hxg4 {[%clk 0:00:40.4]} 38. hxg4 {[%clk 0:00:44.2]} 38... f6
{[%clk 0:00:37.5]} 39. f4 {[%clk 0:00:40.4]} 39... fxe5 {[%clk 0:00:37.1]} 40.
fxe5 {[%clk 0:00:41.3]} 40... Bd5 {[%clk 0:00:33.8]} 41. Kf4 {[%clk 0:00:41.3]}
41... Bc4 {[%clk 0:00:33.3]} 42. Be7 {[%clk 0:00:38.3]} 42... Bd5 {[%clk
0:00:32.6]} 43. Bc5 {[%clk 0:00:38.6]} 1/2-1/2

[Event "*** Titled Tuesday Blitz"]
[Site "Chess.com"]
[Date "2020.04.07"]
[Round "9"]
[White "alexwinter25"]
[Black "malandragem"]
[Result "1-0"]
[WhiteElo "2364"]
[BlackElo "2469"]
[TimeControl "180+1"]
[EndTime "14:46:49 PDT"]
[Termination "alexwinter25 won by resignation"]

1. e4 {[%clk 0:03:00.9]} 1... c5 {[%clk 0:02:59.9]} 2. Nf3 {[%clk 0:03:00.8]}
2... e6 {[%clk 0:02:59.9]} 3. d4 {[%clk 0:03:01.2]} 3... cxd4 {[%clk 0:03:00.8]}
4. c3 {[%clk 0:03:01.9]} 4... dxc3 {[%clk 0:03:00.3]} 5. Nxc3 {[%clk 0:03:02.8]}
5... a6 {[%clk 0:03:00.6]} 6. Bf4 {[%clk 0:03:03.3]} 6... Nc6 {[%clk 0:02:59]}
7. Be2 {[%clk 0:03:03.2]} 7... Nge7 {[%clk 0:02:52.3]} 8. e5 {[%clk 0:02:58.8]}
8... Ng6 {[%clk 0:02:51.4]} 9. Bg3 {[%clk 0:02:58.8]} 9... h5 {[%clk 0:02:50]}
10. h3 {[%clk 0:02:55]} 10... h4 {[%clk 0:02:49.6]} 11. Bh2 {[%clk 0:02:55]}
11... b5 {[%clk 0:02:32.3]} 12. O-O {[%clk 0:02:53.9]} 12... Bb7 {[%clk
0:02:27.5]} 13. Ne4 {[%clk 0:02:54.3]} 13... Rc8 {[%clk 0:02:02.2]} 14. Rc1
{[%clk 0:02:46.8]} 14... Qc7 {[%clk 0:02:00.6]} 15. Nd6+ {[%clk 0:02:46.1]}
15... Bxd6 {[%clk 0:02:00.4]} 16. exd6 {[%clk 0:02:45.9]} 16... Qb6 {[%clk
0:01:58.2]} 17. Ng5 {[%clk 0:02:41.3]} 17... Qd4 {[%clk 0:01:53.6]} 18. Qb3
{[%clk 0:02:32.1]} 18... O-O {[%clk 0:01:16.8]} 19. Qf3 {[%clk 0:02:16.9]} 19...
Qf6 {[%clk 0:01:14.7]} 20. Qh5 {[%clk 0:02:13.3]} 20... Rfe8 {[%clk 0:01:10]}
21. Qh7+ {[%clk 0:02:07.6]} 21... Kf8 {[%clk 0:01:09.1]} 22. Ne4 {[%clk
0:01:35.7]} 22... Qxb2 {[%clk 0:00:56.2]} 23. Bh5 {[%clk 0:01:29]} 23... Nce5
{[%clk 0:00:49.1]} 24. Rc7 {[%clk 0:01:05.3]} 24... Rxc7 {[%clk 0:00:42]} 25.
Nf6 {[%clk 0:00:40.1]} 25... Nf3+ {[%clk 0:00:31.5]} 26. Bxf3 {[%clk 0:00:29.8]}
26... Qxf6 {[%clk 0:00:31.6]} 27. dxc7 {[%clk 0:00:26.7]} 27... Bxf3 {[%clk
0:00:29.7]} 28. Bd6+ {[%clk 0:00:23.2]} 28... Qe7 {[%clk 0:00:25.6]} 29. Bxe7+
{[%clk 0:00:21.7]} 29... Kxe7 {[%clk 0:00:26.5]} 30. gxf3 {[%clk 0:00:20.7]}
30... Kd6 {[%clk 0:00:17.4]} 31. Rc1 {[%clk 0:00:19.7]} 1-0

[Event "*** Titled Tuesday Blitz"]
[Site "Chess.com"]
[Date "2020.04.07"]
[Round "9"]
[White "Harry_Rakkel"]
[Black "Pudor"]
[Result "0-1"]
[WhiteElo "2485"]
[BlackElo "2385"]
[TimeControl "180+1"]
[EndTime "14:46:51 PDT"]
[Termination "Pudor won on time"]

1. e4 {[%clk 0:03:00.9]} 1... c5 {[%clk 0:02:57.7]} 2. Nf3 {[%clk 0:03:00.6]}
2... Nc6 {[%clk 0:02:57.5]} 3. d4 {[%clk 0:02:58.9]} 3... cxd4 {[%clk
0:02:57.5]} 4. Nxd4 {[%clk 0:02:59.2]} 4... Qc7 {[%clk 0:02:58]} 5. Nc3 {[%clk
0:02:52.4]} 5... e6 {[%clk 0:02:57.8]} 6. Be2 {[%clk 0:02:47.8]} 6... a6 {[%clk
0:02:56.9]} 7. O-O {[%clk 0:02:43.3]} 7... Nf6 {[%clk 0:02:56.9]} 8. Kh1 {[%clk
0:02:41.7]} 8... Be7 {[%clk 0:02:56.4]} 9. f4 {[%clk 0:02:39]} 9... d6 {[%clk
0:02:56.5]} 10. Be3 {[%clk 0:02:37]} 10... O-O {[%clk 0:02:56.6]} 11. Qe1 {[%clk
0:02:35.9]} 11... Nxd4 {[%clk 0:02:54.3]} 12. Bxd4 {[%clk 0:02:35.5]} 12... b5
{[%clk 0:02:54.8]} 13. a3 {[%clk 0:02:35.4]} 13... Bb7 {[%clk 0:02:54.5]} 14.
Qg3 {[%clk 0:02:34.9]} 14... Bc6 {[%clk 0:02:54.6]} 15. Bd3 {[%clk 0:02:34.2]}
15... Qb7 {[%clk 0:02:54]} 16. Rae1 {[%clk 0:02:33.2]} 16... b4 {[%clk
0:02:53.2]} 17. Nd1 {[%clk 0:02:12.4]} 17... bxa3 {[%clk 0:02:50.7]} 18. bxa3
{[%clk 0:02:13.3]} 18... g6 {[%clk 0:02:50.6]} 19. Nf2 {[%clk 0:02:09.8]} 19...
Nh5 {[%clk 0:02:48.3]} 20. Qf3 {[%clk 0:02:02.9]} 20... f6 {[%clk 0:02:47]} 21.
Rb1 {[%clk 0:01:51.9]} 21... Qd7 {[%clk 0:02:45.2]} 22. Be3 {[%clk 0:01:37.3]}
22... f5 {[%clk 0:02:35.3]} 23. Rb6 {[%clk 0:01:09.2]} 23... Rfb8 {[%clk
0:02:12.5]} 24. Rfb1 {[%clk 0:01:06.3]} 24... Qc7 {[%clk 0:02:00.9]} 25. Qd1
{[%clk 0:00:30.1]} 25... Nf6 {[%clk 0:01:46.4]} 26. exf5 {[%clk 0:00:28.9]}
26... gxf5 {[%clk 0:01:47.3]} 27. Bd4 {[%clk 0:00:27.5]} 27... e5 {[%clk
0:01:40.1]} 28. fxe5 {[%clk 0:00:26.9]} 28... dxe5 {[%clk 0:01:41]} 29. Rxb8+
{[%clk 0:00:23.7]} 29... Rxb8 {[%clk 0:01:39.2]} 30. Ba1 {[%clk 0:00:19.2]}
30... Bc5 {[%clk 0:01:19.5]} 31. Nh3 {[%clk 0:00:13.6]} 31... Ng4 {[%clk
0:00:45.2]} 32. Rxb8+ {[%clk 0:00:09.5]} 32... Qxb8 {[%clk 0:00:44.8]} 33. Bc4+
{[%clk 0:00:08]} 33... Kf8 {[%clk 0:00:39.5]} 34. Be2 {[%clk 0:00:04.4]} 34...
Ne3 {[%clk 0:00:36.9]} 0-1

[Event "*** Titled Tuesday Blitz"]
[Site "Chess.com"]
[Date "2020.04.07"]
[Round "9"]
[White "ehrenfeld"]
[Black "ferdipy"]
[Result "1-0"]
[WhiteElo "2423"]
[BlackElo "2182"]
[TimeControl "180+1"]
[EndTime "14:46:52 PDT"]
[Termination "ehrenfeld won by checkmate"]

1. e4 {[%clk 0:03:00.9]} 1... e6 {[%clk 0:02:56.9]} 2. d3 {[%clk 0:03:00.8]}
2... d5 {[%clk 0:02:56.5]} 3. Qe2 {[%clk 0:03:00.9]} 3... Nf6 {[%clk 0:02:55.8]}
4. Nf3 {[%clk 0:03:00.6]} 4... Be7 {[%clk 0:02:43.4]} 5. g3 {[%clk 0:03:00.1]}
5... c5 {[%clk 0:02:43.3]} 6. Bg2 {[%clk 0:02:59.5]} 6... O-O {[%clk 0:02:36.4]}
7. e5 {[%clk 0:02:58.4]} 7... Nfd7 {[%clk 0:02:35.7]} 8. c4 {[%clk 0:02:58.3]}
8... Nc6 {[%clk 0:02:30.1]} 9. O-O {[%clk 0:02:58]} 9... h6 {[%clk 0:02:21.1]}
10. h4 {[%clk 0:02:53.4]} 10... Re8 {[%clk 0:02:20.2]} 11. Re1 {[%clk
0:02:48.1]} 11... a6 {[%clk 0:02:15.2]} 12. Bf4 {[%clk 0:02:31.9]} 12... b5
{[%clk 0:02:09.7]} 13. cxd5 {[%clk 0:02:24.8]} 13... exd5 {[%clk 0:02:08.3]} 14.
e6 {[%clk 0:02:16.9]} 14... Nf6 {[%clk 0:02:08.1]} 15. exf7+ {[%clk 0:02:15.8]}
15... Kxf7 {[%clk 0:02:08.4]} 16. Ne5+ {[%clk 0:02:11.7]} 16... Nxe5 {[%clk
0:02:07.9]} 17. Bxe5 {[%clk 0:02:11.1]} 17... Bf5 {[%clk 0:01:41.4]} 18. Nc3
{[%clk 0:02:07.6]} 18... Qd7 {[%clk 0:01:26.9]} 19. Bxf6 {[%clk 0:01:48]} 19...
Bxf6 {[%clk 0:01:24.7]} 20. Bxd5+ {[%clk 0:01:47.9]} 20... Kg6 {[%clk
0:01:15.9]} 21. Be4 {[%clk 0:01:44.8]} 21... b4 {[%clk 0:01:04.8]} 22. Qg4+
{[%clk 0:01:27.2]} 22... Bg5 {[%clk 0:00:55.4]} 23. Bxf5+ {[%clk 0:01:26.6]}
23... Qxf5 {[%clk 0:00:55.5]} 24. h5+ {[%clk 0:01:25.5]} 24... Kf6 {[%clk
0:00:52.4]} 25. Ne4+ {[%clk 0:01:25.3]} 25... Rxe4 {[%clk 0:00:51.4]} 26. Qxf5+
{[%clk 0:01:25.2]} 26... Kxf5 {[%clk 0:00:50.9]} 27. dxe4+ {[%clk 0:01:25.4]}
27... Kg4 {[%clk 0:00:50.1]} 28. Kg2 {[%clk 0:01:23.6]} 28... Kxh5 {[%clk
0:00:45.5]} 29. f4 {[%clk 0:01:21.9]} 29... Be7 {[%clk 0:00:45.7]} 30. Rad1
{[%clk 0:01:20]} 30... c4 {[%clk 0:00:42.2]} 31. Rd7 {[%clk 0:01:17.4]} 31...
Re8 {[%clk 0:00:36]} 32. Rc7 {[%clk 0:01:14.7]} 32... c3 {[%clk 0:00:33.8]} 33.
bxc3 {[%clk 0:01:14.1]} 33... bxc3 {[%clk 0:00:34.7]} 34. Rxc3 {[%clk
0:01:14.1]} 34... Bb4 {[%clk 0:00:34.1]} 35. Rh1+ {[%clk 0:01:14.2]} 35... Kg6
{[%clk 0:00:32.4]} 36. Rc6+ {[%clk 0:01:14.2]} 36... Kh7 {[%clk 0:00:32.9]} 37.
Kf3 {[%clk 0:01:11.9]} 37... a5 {[%clk 0:00:32.8]} 38. e5 {[%clk 0:01:10.5]}
38... Rd8 {[%clk 0:00:30.9]} 39. Rh2 {[%clk 0:01:10.5]} 39... Rd3+ {[%clk
0:00:30.8]} 40. Ke4 {[%clk 0:01:10.5]} 40... Rd1 {[%clk 0:00:28.8]} 41. Rc7
{[%clk 0:01:03.2]} 41... Rg1 {[%clk 0:00:26]} 42. Rh3 {[%clk 0:00:59.3]} 42...
Re1+ {[%clk 0:00:19.6]} 43. Kf5 {[%clk 0:00:59.1]} 43... Ra1 {[%clk 0:00:17.6]}
44. Rh2 {[%clk 0:00:57.9]} 44... Rg1 {[%clk 0:00:16.7]} 45. g4 {[%clk
0:00:57.5]} 45... Rf1 {[%clk 0:00:16.9]} 46. g5 {[%clk 0:00:56.7]} 46... Bd2
{[%clk 0:00:09.6]} 47. g6+ {[%clk 0:00:56.6]} 47... Kg8 {[%clk 0:00:08.3]} 48.
Rc8# {[%clk 0:00:56.5]} 1-0

[Event "*** Titled Tuesday Blitz"]
[Site "Chess.com"]
[Date "2020.04.07"]
[Round "9"]
[White "Qvalda"]
[Black "aquaticpineapples"]
[Result "1-0"]
[WhiteElo "2365"]
[BlackElo "2234"]
[TimeControl "180+1"]
[EndTime "14:46:55 PDT"]
[Termination "Qvalda won by checkmate"]

1. e4 {[%clk 0:02:55.3]} 1... d5 {[%clk 0:02:59.4]} 2. exd5 {[%clk 0:02:52.6]}
2... Qxd5 {[%clk 0:03:00.3]} 3. d4 {[%clk 0:02:53.1]} 3... Nc6 {[%clk
0:02:59.4]} 4. Nf3 {[%clk 0:02:44.1]} 4... Bg4 {[%clk 0:02:59.4]} 5. Nc3 {[%clk
0:02:41.6]} 5... Qa5 {[%clk 0:02:58]} 6. Bb5 {[%clk 0:02:40.2]} 6... O-O-O
{[%clk 0:02:53.5]} 7. Bxc6 {[%clk 0:02:39.6]} 7... bxc6 {[%clk 0:02:52]} 8. h3
{[%clk 0:02:26]} 8... Qh5 {[%clk 0:02:47.3]} 9. Qe2 {[%clk 0:02:10.2]} 9... Bxf3
{[%clk 0:02:45.3]} 10. gxf3 {[%clk 0:02:11.1]} 10... Rxd4 {[%clk 0:02:29.3]} 11.
Be3 {[%clk 0:02:00.8]} 11... Rb4 {[%clk 0:02:26]} 12. Qa6+ {[%clk 0:01:54.6]}
12... Rb7 {[%clk 0:02:25.8]} 13. O-O-O {[%clk 0:01:50.2]} 13... Qxf3 {[%clk
0:02:09.9]} 14. Bxa7 {[%clk 0:01:28.5]} 14... e6 {[%clk 0:01:58.6]} 15. Rhe1
{[%clk 0:00:59.6]} 15... Bd6 {[%clk 0:01:54.7]} 16. Ne4 {[%clk 0:00:54.1]} 16...
Nf6 {[%clk 0:01:40.8]} 17. Nxd6+ {[%clk 0:00:45.1]} 17... cxd6 {[%clk
0:01:34.2]} 18. Re3 {[%clk 0:00:42.4]} 18... Qg2 {[%clk 0:01:14.2]} 19. Rb3
{[%clk 0:00:19.4]} 19... Qg5+ {[%clk 0:01:04.5]} 20. Be3 {[%clk 0:00:12.3]}
20... Qb5 {[%clk 0:01:00.9]} 21. Rxb5 {[%clk 0:00:11.9]} 21... cxb5 {[%clk
0:01:01.2]} 22. Rxd6 {[%clk 0:00:11.5]} 22... Nd5 {[%clk 0:00:57.7]} 23. Rc6+
{[%clk 0:00:10.9]} 23... Kb8 {[%clk 0:00:57.8]} 24. Bc5 {[%clk 0:00:09.7]} 24...
Rd8 {[%clk 0:00:53.8]} 25. Bd6+ {[%clk 0:00:09.5]} 25... Rxd6 {[%clk 0:00:53.4]}
26. Rxd6 {[%clk 0:00:10.4]} 26... Nb4 {[%clk 0:00:53.1]} 27. Rd8+ {[%clk
0:00:08.9]} 27... Kc7 {[%clk 0:00:53.3]} 28. Rd7+ {[%clk 0:00:09.1]} 28... Kxd7
{[%clk 0:00:52.1]} 29. Qxb7+ {[%clk 0:00:10]} 29... Kd6 {[%clk 0:00:51.2]} 30.
Qxb5 {[%clk 0:00:09.9]} 30... Nc6 {[%clk 0:00:50.7]} 31. a4 {[%clk 0:00:08.2]}
31... e5 {[%clk 0:00:50.1]} 32. Qd3+ {[%clk 0:00:08.1]} 32... Ke6 {[%clk
0:00:49.5]} 33. Qxh7 {[%clk 0:00:09]} 33... g6 {[%clk 0:00:48.4]} 34. Qh4 {[%clk
0:00:07.7]} 34... Nd4 {[%clk 0:00:47.7]} 35. a5 {[%clk 0:00:06.3]} 35... f6
{[%clk 0:00:46.9]} 36. a6 {[%clk 0:00:05.5]} 36... Nf3 {[%clk 0:00:47.5]} 37.
Qg4+ {[%clk 0:00:05.3]} 37... f5 {[%clk 0:00:47.5]} 38. Qxf3 {[%clk 0:00:05.5]}
38... e4 {[%clk 0:00:48.4]} 39. Qb3+ {[%clk 0:00:05.5]} 39... Kd7 {[%clk
0:00:49.3]} 40. a7 {[%clk 0:00:06.1]} 40... Kc7 {[%clk 0:00:50.2]} 41. a8=Q
{[%clk 0:00:06.5]} 41... e3 {[%clk 0:00:51.1]} 42. Qa7+ {[%clk 0:00:06.5]} 42...
Kd6 {[%clk 0:00:52]} 43. Qd4+ {[%clk 0:00:06]} 43... Ke7 {[%clk 0:00:51.9]} 44.
Qdxe3+ {[%clk 0:00:05.7]} 44... Kf6 {[%clk 0:00:52.8]} 45. Qd4+ {[%clk
0:00:05.4]} 45... Kg5 {[%clk 0:00:53.7]} 46. Qg3+ {[%clk 0:00:05.3]} 46... Kh5
{[%clk 0:00:54.6]} 47. Qh8# {[%clk 0:00:05.1]} 1-0